[Event "Titled Tuesday Blitz June 07 Early 2022"]
[White "Svane, Rasmus"]
[Black "Shuvalov, Evgenij"]
[WhiteFideId "4657101"]
[BlackFideId "4187237"]
[WhiteElo "2674"]
[BlackElo "2023"]
[Result "1-0"]
[Round "01"]
[TimeControl "180+1"]
[Date "2022.06.07"]
[WhiteClock "0:00:58"]
[BlackClock "0:01:28"]

1. Nf3 {[%clk 0:03:00]}  Nf6 {[%clk 0:02:58]} 2. g3 {[%clk 0:03:00]}  d5 {[%clk 0:02:57]} 3. Bg2 {[%clk 0:02:58]}  c6 {[%clk 0:02:57]} 4. O-O {[%clk 0:02:58]}  Bf5 {[%clk 0:02:57]} 5. c4 {[%clk 0:02:58]}  e6 {[%clk 0:02:56]} 6. Qb3 {[%clk 0:02:58]}  Qb6 {[%clk 0:02:55]} 7. d3 {[%clk 0:02:58]}  Nbd7 {[%clk 0:02:54]} 8. cxd5 {[%clk 0:02:58]}  cxd5 {[%clk 0:02:52]} 9. Nc3 {[%clk 0:02:57]}  Be7 {[%clk 0:02:50]} 10. Bf4 {[%clk 0:02:52]}  h6 {[%clk 0:02:48]} 11. Qxb6 {[%clk 0:02:50]}  Nxb6 {[%clk 0:02:45]} 12. Nb5 {[%clk 0:02:50]}  O-O {[%clk 0:02:40]} 13. Rfc1 {[%clk 0:02:40]}  Rfc8 {[%clk 0:02:37]} 14. Nfd4 {[%clk 0:02:22]}  Bg4 {[%clk 0:02:33]} 15. h3 {[%clk 0:02:17]}  Bh5 {[%clk 0:02:33]} 16. g4 {[%clk 0:02:18]}  Bg6 {[%clk 0:02:33]} 17. Rxc8+ {[%clk 0:02:14]}  Nxc8 {[%clk 0:02:28]} 18. Nc7 {[%clk 0:02:11]}  Rb8 {[%clk 0:02:27]} 19. Ncxe6 {[%clk 0:01:51]}  Bd6 {[%clk 0:02:25]} 20. Bxd6 {[%clk 0:01:52]}  Nxd6 {[%clk 0:02:25]} 21. Nf4 {[%clk 0:01:52]}  Rc8 {[%clk 0:02:16]} 22. Nxd5 {[%clk 0:01:52]}  Nxd5 {[%clk 0:02:16]} 23. Bxd5 {[%clk 0:01:53]}  Kf8 {[%clk 0:02:12]} 24. f4 {[%clk 0:01:50]}  f6 {[%clk 0:02:12]} 25. Kf2 {[%clk 0:01:48]}  Bf7 {[%clk 0:02:11]} 26. Bxf7 {[%clk 0:01:45]}  Kxf7 {[%clk 0:02:12]} 27. Ke3 {[%clk 0:01:37]}  h5 {[%clk 0:02:07]} 28. Kd2 {[%clk 0:01:37]}  hxg4 {[%clk 0:02:06]} 29. hxg4 {[%clk 0:01:38]}  Ke7 {[%clk 0:02:03]} 30. Rc1 {[%clk 0:01:37]}  Rxc1 {[%clk 0:02:02]} 31. Kxc1 {[%clk 0:01:38]}  Kd7 {[%clk 0:02:02]} 32. Kd2 {[%clk 0:01:37]}  Nf7 {[%clk 0:02:01]} 33. e4 {[%clk 0:01:25]}  a6 {[%clk 0:01:59]} 34. Ke3 {[%clk 0:01:22]}  Nh6 {[%clk 0:01:54]} 35. Kf3 {[%clk 0:01:20]}  Nf7 {[%clk 0:01:54]} 36. Nf5 {[%clk 0:01:17]}  g5 {[%clk 0:01:52]} 37. d4 {[%clk 0:01:16]}  gxf4 {[%clk 0:01:51]} 38. Kxf4 {[%clk 0:01:17]}  Ng5 {[%clk 0:01:48]} 39. e5 {[%clk 0:01:09]}  Ne6+ {[%clk 0:01:47]} 40. Ke4 {[%clk 0:01:09]}  Ng5+ {[%clk 0:01:45]} 41. Kd5 {[%clk 0:01:09]}  fxe5 {[%clk 0:01:44]} 42. dxe5 {[%clk 0:01:06]}  Ne6 {[%clk 0:01:44]} 43. Nd4 {[%clk 0:01:06]}  Nc7+ {[%clk 0:01:43]} 44. Kc5 {[%clk 0:01:00]}  Ne8 {[%clk 0:01:32]} 45. Kb6 {[%clk 0:01:00]}  Kc8 {[%clk 0:01:32]} 46. Nf5 {[%clk 0:00:58]}  Kb8 {[%clk 0:01:28]} 47. g5 {[%clk 0:00:58]} 1-0


[Site "https://www.chess.com"]

[Event "Titled Tuesday Blitz June 07 Early 2022"]
[White "Tasev, Dejan"]
[Black "Durarbayli, Vasif"]
[WhiteFideId "936618"]
[BlackFideId "13402935"]
[WhiteElo "2253"]
[BlackElo "2528"]
[Result "0-1"]
[Round "01"]
[TimeControl "180+1"]
[Date "2022.06.07"]
[WhiteClock "0:01:19"]
[BlackClock "0:00:51"]

1. e4 {[%clk 0:03:00]}  e5 {[%clk 0:02:58]} 2. Nf3 {[%clk 0:03:00]}  Nc6 {[%clk 0:02:59]} 3. Bb5 {[%clk 0:03:00]}  a6 {[%clk 0:03:00]} 4. Ba4 {[%clk 0:03:00]}  Nf6 {[%clk 0:03:00]} 5. O-O {[%clk 0:03:00]}  b5 {[%clk 0:03:01]} 6. Bb3 {[%clk 0:02:59]}  Bc5 {[%clk 0:03:02]} 7. c3 {[%clk 0:02:58]}  d6 {[%clk 0:03:01]} 8. d4 {[%clk 0:02:58]}  Bb6 {[%clk 0:03:02]} 9. h3 {[%clk 0:02:58]}  O-O {[%clk 0:03:01]} 10. Re1 {[%clk 0:02:59]}  Bb7 {[%clk 0:02:53]} 11. Bc2 {[%clk 0:02:54]}  h6 {[%clk 0:02:52]} 12. Be3 {[%clk 0:02:53]}  exd4 {[%clk 0:02:41]} 13. cxd4 {[%clk 0:02:53]}  Nb4 {[%clk 0:02:40]} 14. Nbd2 {[%clk 0:02:48]}  Re8 {[%clk 0:02:33]} 15. e5 {[%clk 0:02:43]}  Nxc2 {[%clk 0:02:32]} 16. Qxc2 {[%clk 0:02:41]}  Nd5 {[%clk 0:02:31]} 17. a3 {[%clk 0:02:35]}  dxe5 {[%clk 0:02:27]} 18. Nxe5 {[%clk 0:02:30]}  Nxe3 {[%clk 0:02:27]} 19. fxe3 {[%clk 0:02:28]}  Bxd4 {[%clk 0:02:27]} 20. Nxf7 {[%clk 0:02:17]}  Rxe3 {[%clk 0:01:47]} 21. Nxh6+ {[%clk 0:02:13]}  Kf8 {[%clk 0:01:34]} 22. Qf5+ {[%clk 0:01:37]}  Qf6 {[%clk 0:01:34]} 23. Qxf6+ {[%clk 0:01:33]}  gxf6 {[%clk 0:01:35]} 24. Kf1 {[%clk 0:01:28]}  Rae8 {[%clk 0:01:29]} 25. Nf5 {[%clk 0:01:26]}  Rxe1+ {[%clk 0:00:53]} 26. Rxe1 {[%clk 0:01:25]}  Rxe1+ {[%clk 0:00:54]} 27. Kxe1 {[%clk 0:01:24]}  Bxb2 {[%clk 0:00:54]} 28. Nb1 {[%clk 0:01:19]}  Be4 {[%clk 0:00:51]} 0-1


[Site "https://www.chess.com"]

[Event "Titled Tuesday Blitz June 07 Early 2022"]
[White "Villamayor, Buenaventura"]
[Black "Urazayev, Arystanbek"]
[WhiteFideId "5200393"]
[BlackFideId "13709810"]
[WhiteElo "2301"]
[BlackElo "2422"]
[Result "0-1"]
[Round "01"]
[TimeControl "180+1"]
[Date "2022.06.08"]
[WhiteClock "0:00:04"]
[BlackClock "0:00:14"]

1. e4 {[%clk 0:02:59]}  e5 {[%clk 0:03:00]} 2. Nf3 {[%clk 0:02:58]}  Nc6 {[%clk 0:03:00]} 3. d4 {[%clk 0:02:59]}  exd4 {[%clk 0:03:00]} 4. Nxd4 {[%clk 0:03:00]}  Nf6 {[%clk 0:03:01]} 5. Nxc6 {[%clk 0:02:58]}  bxc6 {[%clk 0:03:02]} 6. e5 {[%clk 0:02:59]}  Qe7 {[%clk 0:03:02]} 7. Qe2 {[%clk 0:02:59]}  Nd5 {[%clk 0:03:03]} 8. c4 {[%clk 0:03:00]}  Nb6 {[%clk 0:03:03]} 9. Nc3 {[%clk 0:03:00]}  Bb7 {[%clk 0:03:04]} 10. Qe4 {[%clk 0:02:36]}  O-O-O {[%clk 0:03:04]} 11. Be3 {[%clk 0:01:54]}  Re8 {[%clk 0:03:00]} 12. f4 {[%clk 0:01:45]}  f6 {[%clk 0:02:59]} 13. c5 {[%clk 0:01:36]}  Nd5 {[%clk 0:02:56]} 14. Bf2 {[%clk 0:01:05]}  fxe5 {[%clk 0:02:52]} 15. f5 {[%clk 0:01:06]}  Nf6 {[%clk 0:02:31]} 16. Qa4 {[%clk 0:01:01]}  e4 {[%clk 0:02:31]} 17. Bd4 {[%clk 0:00:56]}  Kb8 {[%clk 0:02:18]} 18. Ba6 {[%clk 0:00:51]}  Bxa6 {[%clk 0:02:16]} 19. Qxa6 {[%clk 0:00:52]}  Nd5 {[%clk 0:00:35]} 20. Nxd5 {[%clk 0:00:31]}  cxd5 {[%clk 0:00:35]} 21. O-O-O {[%clk 0:00:29]}  c6 {[%clk 0:00:34]} 22. Rhe1 {[%clk 0:00:23]}  Ka8 {[%clk 0:00:25]} 23. Re3 {[%clk 0:00:17]}  Rb8 {[%clk 0:00:25]} 24. Ra3 {[%clk 0:00:15]}  Rb7 {[%clk 0:00:25]} 25. Kb1 {[%clk 0:00:15]}  Qd8 {[%clk 0:00:20]} 26. Rc3 {[%clk 0:00:05]}  Be7 {[%clk 0:00:20]} 27. Bxg7 {[%clk 0:00:04]}  Rg8 {[%clk 0:00:21]} 28. Be5 {[%clk 0:00:05]}  Rxg2 {[%clk 0:00:21]} 29. b3 {[%clk 0:00:05]}  Bf6 {[%clk 0:00:20]} 30. Bxf6 {[%clk 0:00:05]}  Qxf6 {[%clk 0:00:21]} 31. Rdc1 {[%clk 0:00:04]}  d4 {[%clk 0:00:20]} 32. Rc4 {[%clk 0:00:04]}  d3 {[%clk 0:00:20]} 33. R1c3 {[%clk 0:00:01]}  d2 {[%clk 0:00:19]} 34. Kc2 {[%clk 0:00:02]}  d1=Q+ {[%clk 0:00:18]} 35. Kxd1 {[%clk 0:00:02]}  Qg5 {[%clk 0:00:19]} 36. Rc2 {[%clk 0:00:01]}  Rg1+ {[%clk 0:00:19]} 37. Ke2 {[%clk 0:00:02]}  Qg4+ {[%clk 0:00:19]} 38. Ke3 {[%clk 0:00:02]}  Re1+ {[%clk 0:00:19]} 39. Kd4 {[%clk 0:00:03]}  e3+ {[%clk 0:00:19]} 40. Kd3 {[%clk 0:00:03]}  Qd1+ {[%clk 0:00:19]} 41. Ke4 {[%clk 0:00:04]}  Qd5+ {[%clk 0:00:19]} 42. Kf4 {[%clk 0:00:04]}  Rf1+ {[%clk 0:00:20]} 43. Kg3 {[%clk 0:00:04]}  Rg1+ {[%clk 0:00:16]} 44. Kh4 {[%clk 0:00:04]}  Qg8 {[%clk 0:00:14]} 0-1


[Site "https://www.chess.com"]

[Event "Titled Tuesday Blitz June 07 Early 2022"]
[White "Vusatiuk, Vladimir"]
[Black "Laxman, R.R."]
[WhiteFideId "14118610"]
[BlackFideId "5005361"]
[WhiteElo "2157"]
[BlackElo "2361"]
[Result "1/2-1/2"]
[Round "01"]
[TimeControl "180+1"]
[Date "2022.06.08"]
[WhiteClock "0:00:09"]
[BlackClock "0:00:24"]

1. d4 {[%clk 0:02:59]}  Nf6 {[%clk 0:02:59]} 2. c4 {[%clk 0:02:59]}  e6 {[%clk 0:03:00]} 3. Nc3 {[%clk 0:02:58]}  Bb4 {[%clk 0:03:00]} 4. Qc2 {[%clk 0:02:59]}  O-O {[%clk 0:02:59]} 5. a3 {[%clk 0:02:59]}  Bxc3+ {[%clk 0:02:59]} 6. Qxc3 {[%clk 0:03:00]}  d5 {[%clk 0:03:00]} 7. Bg5 {[%clk 0:02:59]}  h6 {[%clk 0:02:55]} 8. Bh4 {[%clk 0:02:49]}  dxc4 {[%clk 0:02:53]} 9. Qxc4 {[%clk 0:02:47]}  b6 {[%clk 0:02:53]} 10. Nf3 {[%clk 0:02:44]}  Ba6 {[%clk 0:02:52]} 11. Qa4 {[%clk 0:02:42]}  Qd7 {[%clk 0:02:52]} 12. Qc2 {[%clk 0:02:31]}  Qc6 {[%clk 0:02:43]} 13. Qxc6 {[%clk 0:02:23]}  Nxc6 {[%clk 0:02:42]} 14. Rc1 {[%clk 0:02:24]}  Bb7 {[%clk 0:02:42]} 15. Bxf6 {[%clk 0:02:19]}  gxf6 {[%clk 0:02:42]} 16. e3 {[%clk 0:02:20]}  Rac8 {[%clk 0:02:40]} 17. Bb5 {[%clk 0:02:09]}  Nb8 {[%clk 0:02:32]} 18. Ke2 {[%clk 0:02:07]}  Rfd8 {[%clk 0:02:30]} 19. b4 {[%clk 0:01:58]}  Kf8 {[%clk 0:02:21]} 20. Rc3 {[%clk 0:01:56]}  Ke7 {[%clk 0:02:17]} 21. Rhc1 {[%clk 0:01:56]}  c6 {[%clk 0:02:13]} 22. Bd3 {[%clk 0:01:56]}  f5 {[%clk 0:02:09]} 23. Ne5 {[%clk 0:01:32]}  f6 {[%clk 0:02:07]} 24. Ng6+ {[%clk 0:01:30]}  Kf7 {[%clk 0:02:08]} 25. Nf4 {[%clk 0:01:30]}  Nd7 {[%clk 0:02:06]} 26. Bc4 {[%clk 0:01:23]}  Nf8 {[%clk 0:02:06]} 27. a4 {[%clk 0:01:18]}  Ke7 {[%clk 0:02:06]} 28. Nd3 {[%clk 0:01:11]}  Ng6 {[%clk 0:02:00]} 29. f4 {[%clk 0:01:00]}  h5 {[%clk 0:01:55]} 30. Kf2 {[%clk 0:00:51]}  h4 {[%clk 0:01:55]} 31. Ne1 {[%clk 0:00:47]}  c5 {[%clk 0:01:54]} 32. dxc5 {[%clk 0:00:43]}  bxc5 {[%clk 0:01:54]} 33. b5 {[%clk 0:00:43]}  Rd2+ {[%clk 0:01:54]} 34. Be2 {[%clk 0:00:42]}  Kd6 {[%clk 0:01:48]} 35. Nf3 {[%clk 0:00:42]}  Bxf3 {[%clk 0:01:46]} 36. Kxf3 {[%clk 0:00:42]}  Ne7 {[%clk 0:01:46]} 37. Rd1 {[%clk 0:00:30]}  Rxd1 {[%clk 0:01:45]} 38. Bxd1 {[%clk 0:00:30]}  Nd5 {[%clk 0:01:46]} 39. Rc4 {[%clk 0:00:31]}  Nb6 {[%clk 0:01:45]} 40. Rc1 {[%clk 0:00:27]}  c4 {[%clk 0:01:46]} 41. a5 {[%clk 0:00:25]}  Nd5 {[%clk 0:01:47]} 42. Be2 {[%clk 0:00:22]}  c3 {[%clk 0:01:47]} 43. e4 {[%clk 0:00:21]}  Nb4 {[%clk 0:01:43]} 44. exf5 {[%clk 0:00:20]}  c2 {[%clk 0:01:42]} 45. Ke3 {[%clk 0:00:19]}  Na2 {[%clk 0:01:41]} 46. Kd2 {[%clk 0:00:18]}  Nxc1 {[%clk 0:01:42]} 47. Kxc1 {[%clk 0:00:19]}  exf5 {[%clk 0:01:43]} 48. Bd3 {[%clk 0:00:20]}  Rc5 {[%clk 0:01:42]} 49. b6 {[%clk 0:00:20]}  Rxa5 {[%clk 0:01:40]} 50. bxa7 {[%clk 0:00:17]}  Rxa7 {[%clk 0:01:40]} 51. Bxf5 {[%clk 0:00:17]}  Ra1+ {[%clk 0:01:36]} 52. Kxc2 {[%clk 0:00:15]}  Ra2+ {[%clk 0:01:37]} 53. Kd3 {[%clk 0:00:15]}  Rxg2 {[%clk 0:01:38]} 54. h3 {[%clk 0:00:16]}  Rg3+ {[%clk 0:01:34]} 55. Ke4 {[%clk 0:00:16]}  Kc5 {[%clk 0:01:34]} 56. Bg4 {[%clk 0:00:16]}  Kd6 {[%clk 0:01:33]} 57. Bf5 {[%clk 0:00:16]}  Ke7 {[%clk 0:01:33]} 58. Bg4 {[%clk 0:00:16]}  Kf7 {[%clk 0:01:33]} 59. Bh5+ {[%clk 0:00:16]}  Kg7 {[%clk 0:01:33]} 60. Bg4 {[%clk 0:00:17]}  Kg6 {[%clk 0:01:33]} 61. Bf5+ {[%clk 0:00:15]}  Kh5 {[%clk 0:01:34]} 62. Kd5 {[%clk 0:00:13]}  Re3 {[%clk 0:01:33]} 63. Kd4 {[%clk 0:00:12]}  Re1 {[%clk 0:01:31]} 64. Be4 {[%clk 0:00:11]}  Kh6 {[%clk 0:01:29]} 65. Bf5 {[%clk 0:00:11]}  Kg7 {[%clk 0:01:29]} 66. Bg4 {[%clk 0:00:12]}  Kf7 {[%clk 0:01:29]} 67. Bf5 {[%clk 0:00:12]}  Ke7 {[%clk 0:01:29]} 68. Kd5 {[%clk 0:00:12]}  Rg1 {[%clk 0:01:25]} 69. Ke4 {[%clk 0:00:11]}  Kd6 {[%clk 0:01:26]} 70. Bg4 {[%clk 0:00:11]}  Ke7 {[%clk 0:01:08]} 71. Kf5 {[%clk 0:00:12]}  Ra1 {[%clk 0:01:08]} 72. Ke4 {[%clk 0:00:12]}  Ra5 {[%clk 0:01:08]} 73. Bf5 {[%clk 0:00:09]}  Kd6 {[%clk 0:01:08]} 74. Bg4 {[%clk 0:00:10]}  Kc5 {[%clk 0:01:05]} 75. Kf5 {[%clk 0:00:09]}  Ra6 {[%clk 0:01:04]} 76. Kg6 {[%clk 0:00:07]}  Kd4 {[%clk 0:01:04]} 77. Kh5 {[%clk 0:00:06]}  Ke3 {[%clk 0:01:04]} 78. f5 {[%clk 0:00:07]}  Kf4 {[%clk 0:01:02]} 79. Kxh4 {[%clk 0:00:07]}  Ra8 {[%clk 0:01:02]} 80. Kh5 {[%clk 0:00:07]}  Rg8 {[%clk 0:01:01]} 81. Kh6 {[%clk 0:00:07]}  Rg5 {[%clk 0:00:58]} 82. Kh7 {[%clk 0:00:05]}  Ke5 {[%clk 0:00:58]} 83. Kh6 {[%clk 0:00:05]}  Rg8 {[%clk 0:00:57]} 84. Kh7 {[%clk 0:00:06]}  Rb8 {[%clk 0:00:57]} 85. Kg7 {[%clk 0:00:05]}  Rb6 {[%clk 0:00:58]} 86. Kg6 {[%clk 0:00:05]}  Kf4 {[%clk 0:00:59]} 87. Kf7 {[%clk 0:00:04]}  Kg3 {[%clk 0:01:00]} 88. Kg6 {[%clk 0:00:05]}  Kh4 {[%clk 0:01:01]} 89. Kf7 {[%clk 0:00:05]}  Kg5 {[%clk 0:01:01]} 90. Ke7 {[%clk 0:00:05]}  Rb7+ {[%clk 0:01:00]} 91. Ke6 {[%clk 0:00:06]}  Ra7 {[%clk 0:01:01]} 92. Kd6 {[%clk 0:00:05]}  Ra6+ {[%clk 0:00:58]} 93. Ke7 {[%clk 0:00:05]}  Kf4 {[%clk 0:00:59]} 94. Kf7 {[%clk 0:00:05]}  Ke5 {[%clk 0:00:59]} 95. Kg6 {[%clk 0:00:06]}  Ra7 {[%clk 0:00:59]} 96. Kh6 {[%clk 0:00:06]}  Ra4 {[%clk 0:00:54]} 97. Kg6 {[%clk 0:00:07]}  Rf4 {[%clk 0:00:55]} 98. Kf7 {[%clk 0:00:07]}  Rb4 {[%clk 0:00:47]} 99. Kg6 {[%clk 0:00:07]}  Rb6 {[%clk 0:00:46]} 100. Kf7 {[%clk 0:00:08]}  Kf4 {[%clk 0:00:47]} 101. Ke7 {[%clk 0:00:08]}  Kg5 {[%clk 0:00:47]} 102. Kf7 {[%clk 0:00:08]}  Rb7+ {[%clk 0:00:44]} 103. Ke6 {[%clk 0:00:08]}  Ra7 {[%clk 0:00:45]} 104. Kd6 {[%clk 0:00:09]}  Ra5 {[%clk 0:00:40]} 105. Ke6 {[%clk 0:00:09]}  Re5+ {[%clk 0:00:41]} 106. Kf7 {[%clk 0:00:09]}  Re3 {[%clk 0:00:40]} 107. Kg7 {[%clk 0:00:09]}  Re7+ {[%clk 0:00:40]} 108. Kf8 {[%clk 0:00:09]}  Ra7 {[%clk 0:00:41]} 109. Ke8 {[%clk 0:00:08]}  Rh7 {[%clk 0:00:36]} 110. Kf8 {[%clk 0:00:08]}  Kh6 {[%clk 0:00:31]} 111. Ke8 {[%clk 0:00:07]}  Kg7 {[%clk 0:00:30]} 112. Ke7 {[%clk 0:00:07]}  Rh8 {[%clk 0:00:31]} 113. Ke6 {[%clk 0:00:07]}  Rb8 {[%clk 0:00:32]} 114. Ke7 {[%clk 0:00:08]}  Rb6 {[%clk 0:00:32]} 115. Kd7 {[%clk 0:00:08]}  Kh6 {[%clk 0:00:29]} 116. Ke7 {[%clk 0:00:08]}  Kg5 {[%clk 0:00:29]} 117. Kf7 {[%clk 0:00:08]}  Rb7+ {[%clk 0:00:24]} 118. Ke6 {[%clk 0:00:09]} 1/2-1/2


[Site "https://www.chess.com"]

[Event "Titled Tuesday Blitz June 07 Early 2022"]
[White "Agasarov, Benik"]
[Black "Svane, Rasmus"]
[WhiteFideId "13314823"]
[BlackFideId "4657101"]
[WhiteElo "2612"]
[BlackElo "2674"]
[Result "1/2-1/2"]
[Round "02"]
[TimeControl "180+1"]
[Date "2022.06.07"]
[WhiteClock "0:01:46"]
[BlackClock "0:00:32"]

1. d4 {[%clk 0:03:00]}  Nf6 {[%clk 0:03:00]} 2. c4 {[%clk 0:03:00]}  e6 {[%clk 0:03:00]} 3. Nc3 {[%clk 0:02:58]}  Bb4 {[%clk 0:03:00]} 4. Nf3 {[%clk 0:02:58]}  b6 {[%clk 0:02:58]} 5. e3 {[%clk 0:02:58]}  Ne4 {[%clk 0:02:55]} 6. Bd2 {[%clk 0:02:48]}  Bxc3 {[%clk 0:02:50]} 7. Bxc3 {[%clk 0:02:48]}  Nxc3 {[%clk 0:02:50]} 8. bxc3 {[%clk 0:02:48]}  Bb7 {[%clk 0:02:44]} 9. Bd3 {[%clk 0:02:44]}  d6 {[%clk 0:02:45]} 10. e4 {[%clk 0:02:44]}  Nd7 {[%clk 0:02:42]} 11. O-O {[%clk 0:02:42]}  O-O {[%clk 0:02:38]} 12. Qe2 {[%clk 0:02:42]}  e5 {[%clk 0:02:38]} 13. Rab1 {[%clk 0:02:37]}  Qe7 {[%clk 0:02:33]} 14. a4 {[%clk 0:02:29]}  a5 {[%clk 0:02:32]} 15. c5 {[%clk 0:02:26]}  dxc5 {[%clk 0:02:31]} 16. d5 {[%clk 0:02:25]}  Nf6 {[%clk 0:02:22]} 17. Nd2 {[%clk 0:02:24]}  Ne8 {[%clk 0:02:16]} 18. Nc4 {[%clk 0:02:15]}  Nd6 {[%clk 0:01:59]} 19. Nxd6 {[%clk 0:02:14]}  Qxd6 {[%clk 0:02:00]} 20. c4 {[%clk 0:01:59]}  Bc8 {[%clk 0:01:57]} 21. Bc2 {[%clk 0:01:56]}  f5 {[%clk 0:01:50]} 22. f4 {[%clk 0:01:54]}  fxe4 {[%clk 0:01:18]} 23. fxe5 {[%clk 0:01:51]}  Rxf1+ {[%clk 0:01:17]} 24. Rxf1 {[%clk 0:01:48]}  Qxe5 {[%clk 0:01:15]} 25. Bxe4 {[%clk 0:01:48]}  Qd4+ {[%clk 0:00:48]} 26. Kh1 {[%clk 0:01:47]}  Bd7 {[%clk 0:00:47]} 27. Bxh7+ {[%clk 0:01:46]}  Kxh7 {[%clk 0:00:34]} 28. Qh5+ {[%clk 0:01:46]}  Kg8 {[%clk 0:00:34]} 29. Qf7+ {[%clk 0:01:46]}  Kh8 {[%clk 0:00:30]} 30. Qh5+ {[%clk 0:01:46]}  Kg8 {[%clk 0:00:31]} 31. Qf7+ {[%clk 0:01:46]}  Kh8 {[%clk 0:00:31]} 32. Qh5+ {[%clk 0:01:46]}  Kg8 {[%clk 0:00:32]} 1/2-1/2


[Site "https://www.chess.com"]

[Event "Titled Tuesday Blitz June 07 Early 2022"]
[White "Alinasab, Mobina"]
[Black "Sjugirov, Sanan"]
[WhiteFideId "12528897"]
[BlackFideId "4189302"]
[WhiteElo "2031"]
[BlackElo "2602"]
[Result "1-0"]
[Round "02"]
[TimeControl "180+1"]
[Date "2022.06.07"]
[WhiteClock "0:00:05"]
[BlackClock "0:00:05"]

1. e4 {[%clk 0:03:00]}  c5 {[%clk 0:02:55]} 2. Nf3 {[%clk 0:03:01]}  d6 {[%clk 0:02:55]} 3. d4 {[%clk 0:03:01]}  cxd4 {[%clk 0:02:56]} 4. Nxd4 {[%clk 0:03:02]}  Nf6 {[%clk 0:02:56]} 5. Nc3 {[%clk 0:03:03]}  a6 {[%clk 0:02:57]} 6. h3 {[%clk 0:03:03]}  e5 {[%clk 0:02:50]} 7. Nde2 {[%clk 0:03:04]}  b5 {[%clk 0:02:31]} 8. Nd5 {[%clk 0:03:00]}  Nxd5 {[%clk 0:02:24]} 9. Qxd5 {[%clk 0:03:00]}  Ra7 {[%clk 0:02:24]} 10. Be3 {[%clk 0:02:59]}  Be6 {[%clk 0:02:20]} 11. Qd2 {[%clk 0:02:55]}  Rb7 {[%clk 0:02:17]} 12. Nc3 {[%clk 0:02:54]}  Nd7 {[%clk 0:02:12]} 13. Nd5 {[%clk 0:02:54]}  Be7 {[%clk 0:01:35]} 14. Nxe7 {[%clk 0:02:50]}  Kxe7 {[%clk 0:01:29]} 15. O-O-O {[%clk 0:02:47]}  Qc7 {[%clk 0:01:29]} 16. Kb1 {[%clk 0:02:40]}  Rc8 {[%clk 0:01:25]} 17. f4 {[%clk 0:02:31]}  exf4 {[%clk 0:01:12]} 18. Bxf4 {[%clk 0:02:31]}  Ne5 {[%clk 0:01:11]} 19. Bd3 {[%clk 0:01:57]}  Rb6 {[%clk 0:01:08]} 20. Rhf1 {[%clk 0:01:45]}  Rc6 {[%clk 0:01:06]} 21. Rf2 {[%clk 0:01:34]}  Kf8 {[%clk 0:01:00]} 22. g4 {[%clk 0:01:17]}  Kg8 {[%clk 0:00:59]} 23. g5 {[%clk 0:01:06]}  Qb6 {[%clk 0:00:31]} 24. Be3 {[%clk 0:00:55]}  Qd8 {[%clk 0:00:26]} 25. Bd4 {[%clk 0:00:43]}  Nxd3 {[%clk 0:00:17]} 26. Qxd3 {[%clk 0:00:24]}  d5 {[%clk 0:00:13]} 27. e5 {[%clk 0:00:11]}  Qxg5 {[%clk 0:00:10]} 28. h4 {[%clk 0:00:03]}  Qg6 {[%clk 0:00:09]} 29. Qxg6 {[%clk 0:00:03]}  hxg6 {[%clk 0:00:10]} 30. Kc1 {[%clk 0:00:02]}  Rc4 {[%clk 0:00:10]} 31. c3 {[%clk 0:00:03]}  b4 {[%clk 0:00:10]} 32. Kd2 {[%clk 0:00:03]}  bxc3+ {[%clk 0:00:10]} 33. bxc3 {[%clk 0:00:04]}  Ra4 {[%clk 0:00:10]} 34. Ke3 {[%clk 0:00:04]}  Rb8 {[%clk 0:00:07]} 35. Rdd2 {[%clk 0:00:04]}  Rb1 {[%clk 0:00:07]} 36. Rb2 {[%clk 0:00:05]}  Re1+ {[%clk 0:00:06]} 37. Rfe2 {[%clk 0:00:05]}  Rh1 {[%clk 0:00:06]} 38. Rh2 {[%clk 0:00:05]}  Re1+ {[%clk 0:00:06]} 39. Rhe2 {[%clk 0:00:05]}  Rf1 {[%clk 0:00:05]} 40. Rf2 {[%clk 0:00:06]}  Rxf2 {[%clk 0:00:05]} 41. Rxf2 {[%clk 0:00:06]}  Kh7 {[%clk 0:00:06]} 42. Rb2 {[%clk 0:00:06]}  Ra3 {[%clk 0:00:04]} 43. Kf4 {[%clk 0:00:06]}  Kh6 {[%clk 0:00:03]} 44. Kg3 {[%clk 0:00:07]}  Kh7 {[%clk 0:00:02]} 45. Rf2 {[%clk 0:00:06]}  Ra4 {[%clk 0:00:02]} 46. Rb2 {[%clk 0:00:06]}  Rc4 {[%clk 0:00:02]} 47. Kf4 {[%clk 0:00:06]}  Rc8 {[%clk 0:00:02]} 48. Kg3 {[%clk 0:00:06]}  Re8 {[%clk 0:00:02]} 49. Rb6 {[%clk 0:00:06]}  a5 {[%clk 0:00:02]} 50. Ra6 {[%clk 0:00:06]}  Rb8 {[%clk 0:00:02]} 51. Rxa5 {[%clk 0:00:06]}  g5 {[%clk 0:00:03]} 52. hxg5 {[%clk 0:00:06]}  Kg6 {[%clk 0:00:03]} 53. Ra7 {[%clk 0:00:06]}  Rb1 {[%clk 0:00:03]} 54. a4 {[%clk 0:00:07]}  Kxg5 {[%clk 0:00:03]} 55. a5 {[%clk 0:00:07]}  Ra1 {[%clk 0:00:03]} 56. a6 {[%clk 0:00:07]}  Kf5 {[%clk 0:00:04]} 57. Ra8 {[%clk 0:00:06]}  Bd7 {[%clk 0:00:02]} 58. a7 {[%clk 0:00:06]}  Bc6 {[%clk 0:00:02]} 59. Rc8 {[%clk 0:00:07]}  Bb7 {[%clk 0:00:02]} 60. Rc7 {[%clk 0:00:07]}  Ba8 {[%clk 0:00:03]} 61. Rxf7+ {[%clk 0:00:06]}  Kg6 {[%clk 0:00:03]} 62. e6 {[%clk 0:00:06]}  Ra6 {[%clk 0:00:03]} 63. Rxg7+ {[%clk 0:00:05]}  Kf5 {[%clk 0:00:03]} 64. e7 {[%clk 0:00:05]}  Re6 {[%clk 0:00:03]} 65. Rg8 {[%clk 0:00:06]}  Bc6 {[%clk 0:00:03]} 66. a8=Q {[%clk 0:00:05]}  Bxa8 {[%clk 0:00:04]} 67. e8=Q {[%clk 0:00:05]}  Re7 {[%clk 0:00:05]} 68. Qxe7 {[%clk 0:00:05]} 1-0


[Site "https://www.chess.com"]